Cogmind - Beta 13 @@@ ROGUE MODE // 2024.04.03 @ 02:16:57 Player: oberon720 Result: Destroyed by G-34 Mercenary with Small Laser Performance ------------- Evolutions (1) 500 Regions Visited (2) 400 Robots Destroyed (20) 100 Value Destroyed (265) 265 Prototype IDs (0) 0 Alien Tech Used (0) 0 Bonus (0) 0 TOTAL SCORE: 1265 Bonus ------- None Cogmind --------- Core Integrity 0/400 Matter 260/300 Energy 92/100 System Corruption 0% Temperature Cool (6) Movement Core (50) Location -9/Materials Parts ------- > --- POWER (1) -------- (None) > --- PROPULSION (4) --- (None) > --- UTILITY (2) ------ (None) > --- WEAPON (2) ------- (None) > --- INVENTORY (5) ---- Improved Terrain Scanner Terrain Scan Processor ECM Suite Peak State ------------ > --- POWER ------------ Ion Engine > --- PROPULSION ------- Improved Hover Unit Improved Hover Unit Improved Hover Unit Improved Hover Unit > --- UTILITY ---------- Small Storage Unit Signal Interpreter > --- WEAPON ----------- Plasma Cutter Mace > --- INVENTORY -------- Improved Terrain Scanner Terrain Scan Processor Hardened Light Armor Plating Hardened Light Armor Plating Hardened Light Armor Plating Hardened Light Armor Plating Grenade Launcher [Rating: 16] Favorites ----------- Power Ion Engine Engine Ion Engine Propulsion Improved Hover Unit Wheel Wheel Hover Unit Improved Hover Unit Utility Small Storage Unit Device Improved Terrain Scanner Storage Small Storage Unit Processor Signal Interpreter Protection Hardened Light Armor Plating Weapon Mining Laser Ballistic Gun Assault Rifle Launcher Grenade Launcher Special Weapon Mining Laser Impact Weapon Mace Build | -11 -10 -9 ------- Run | Yrd Mat Mat Slots Evolved 2 | . . 2 Power . | . . . Propulsion 2 | . . 2 Utility . | . . . Weapon . | . . . Parts Attached 17 | 7 4 6 Power 1 | 1 . . Engine 1 | 1 . . Core . | . . . Reactor . | . . . Propulsion 6 | 2 2 2 Treads . | . . . Leg . | . . . Wheel 2 | 2 . . Hover 4 | . 2 2 Flight . | . . . Utility 5 | 2 1 2 Device 1 | 1 . . Storage 2 | 1 . 1 Processor 1 | . 1 . Hackware . | . . . Protection 1 | . . 1 Artifact . | . . . Weapon 5 | 2 1 2 Energy Gun . | . . . Energy Cannon . | . . . Ballistic Gun 1 | 1 . . Ballistic Cannon . | . . . Launcher 1 | . . 1 Special Weapon 2 | 1 . 1 Impact Weapon 1 | . 1 . Slashing Weapon . | . . . Piercing Weapon . | . . . Special Melee Weapon . | . . . Unidentified Prototypes . | . . . Parts Lost 8 | . . 8 Power 1 | . . 1 Propulsion 4 | . . 4 Utility 1 | . . 1 Weapon 2 | . . 2 Highest Loss Streak 6 | . . 6 To Critical Strikes . | . . . Average Slot Usage (%) 92 | . 100 85 Engine 12 | . 14 10 Wheel 4 | . 8 . Hover 28 | . 19 36 Device 6 | . 13 . Storage 12 | . 14 10 Processor 5 | . . 10 Ballistic Gun 2 | . 5 . Special Weapon 9 | . 14 5 Impact Weapon 9 | . 8 10 Naked Turns 6 | . . 6 Heaviest Build 18 | 14 14 18 Greatest Support 28 | 20 20 28 Greatest Overweight (x) 1 | . 1 1 Average Overweight (x) . | . . . Largest Inventory Capacity 10 | 8 8 10 Average Capacity 8 | 7 8 8 Most Carried 8 | 3 8 8 Average Carried 5 | . 5 7 Final Capacity 8 | 8 8 5 Final Carried 8 | . 8 3 Class Distribution -------------------- 100% | Mutant Dominant Class ---------------- Mutant | -10/Materials Mutant | -9/Materials Resources | -11 -10 -9 ----------- Run | Yrd Mat Mat Matter Collected 420 | 330 . 90 Remotely . | . . . Salvage Created 457 | 194 . 263 Parts 26 | 18 . 8 Haulers Intercepted 1 | . . 1 Recyclers Shooed 2 | . . 2 Parts Field Recycled . | . . . Retrieved Matter . | . . . Parts Self-Destructed . | . . . Prevented . | . . . Kills | -11 -10 -9 ------- Run | Yrd Mat Mat Combat Hostiles Destroyed 9 | . . 9 Melee 2 | . . 2 AOE 3 | . . 3 Classes Destroyed 8 | 3 1 4 Worker 2 | 2 . . Builder 1 | . 1 . Tunneler 4 | 4 . . Hauler 1 | . . 1 Recycler 3 | 1 . 2 Swarmer 5 | . . 5 Grunt 3 | . . 3 Sentry 1 | . . 1 Best Kill Streak 7 | 7 1 4 Combat Bots Only 3 | . . 3 Max Kills in Single Turn 2 | 1 1 2 Gunslinging . | . . . Exploded 1 | . . 1 Melee 1 | . . 1 Uniques/NPCs Destroyed . | . . . Combat | -11 -10 -9 -------- Run | Yrd Mat Mat Hostile Shots Fired 125 | . 2 123 Missed 36 | . 1 35 Damage Taken 1170 | . 10 1160 Core 411 | . . 411 Absorbed by Shields . | . . . Core Remaining (%) 100 | 100 100 . Volleys Fired 49 | 20 19 10 Largest 1 | 1 1 1 Hottest 100 | 20 100 100 Shots Fired 49 | 20 19 10 Gun 25 | 20 5 . Cannon . | . . . Launcher 3 | . . 3 Special 21 | . 14 7 Kinetic 25 | 20 5 . Thermal 21 | . 14 7 Explosive 3 | . . 3 Electromagnetic . | . . . Robot Hit Streak 7 | 7 3 6 Robot Miss Streak 2 | 2 2 . Penetration Max . | . . . Secondary Targets . | . . . Shots Hit Robots 42 | 16 7 19 Core Hits 18 | 8 1 9 Critical Kills . | . . . Critical Parts Destroyed 2 | . . 2 Critical Strikes 2 | . . 2 Smash 2 | . . 2 Melee Attacks 40 | . 4 36 Impact 40 | . 4 36 Slashing . | . . . Piercing . | . . . Sneak Attacks 2 | . . 2 Combat Hostiles . | . . . Follow-up Attacks . | . . . Damage Inflicted 1307 | 200 129 978 Guns 236 | 200 36 . Cannons . | . . . Explosions 376 | . . 376 Melee 623 | . 21 602 Ramming . | . . . Kinetic 236 | 200 36 . Thermal 72 | . 72 . Explosive 376 | . . 376 Electromagnetic . | . . . Impact 623 | . 21 602 Slashing . | . . . Piercing . | . . . Highest Corruption . | . . . Average Corruption . | . . . Corruption Purged . | . . . Corruption Blocked . | . . . Overload Shots . | . . . Overflow Damage 229 | . . 229 Projectiles . | . . . Explosions 64 | . . 64 Melee 165 | . . 165 Knockbacks 5 | . . 5 Impact 5 | . . 5 Kinetic . | . . . Secondary . | . . . Self-Inflicted Damage 106 | . . 106 Shots 3 | . . 3 Rammed . | . . . Targets Rammed . | . . . Kicked . | . . . Crushed . | . . . Highest Temperature 322 | . 322 113 Average Temperature 116 | . 162 43 Received Heat Transfer 309 | . . 309 Siege Activations . | . . . Robots Corrupted . | . . . Combat Hostiles . | . . . Parts Fried 6 | . . 6 Impact Corruptions 11 | . . 11 Robots Melted . | . . . Combat Hostiles . | . . . Parts Melted . | . . . Heat Transferred 150 | . 150 . Parts Sabotaged . | . . . Parts Stolen . | . . . Parts Stripped . | . . . Power Chain Reactions . | . . . Alert | -11 -10 -9 ------- Run | Yrd Mat Mat Peak Influence 268 | 35 95 268 Initial 39 | . 22 39 Average 78 | 9 55 134 Maximum Alert Level 1 | . . 1 Low Security (%) 92 | 100 100 81 Level 1 7 | . . 18 Level 2 . | . . . Level 3 . | . . . Level 4 . | . . . Level 5 . | . . . High Security . | . . . Max Security . | . . . Squads Dispatched 3 | . 2 1 Investigation . | . . . Extermination . | . . . Reinforcement 3 | . 2 1 Assault . | . . . Garrison . | . . . Intercept . | . . . Searches Triggered . | . . . Construction Impeded . | . . . Haulers Reinforced . | . . . Active Scanning Responses . | . . . Cargo Convoy Interrupts . | . . . Stealth | -11 -10 -9 --------- Run | Yrd Mat Mat Distress Signals 2 | . 1 1 Communications Jammed . | . . . Distress Signals . | . . . Times Spotted 30 | . 9 21 Peak Tracking Total 9 | . 4 9 Tactical Retreats 2 | . 1 1 Traps | -11 -10 -9 ------- Run | Yrd Mat Mat Traps Triggered . | . . . Indirectly . | . . . Trap Hack Attempts . | . . . Triggered . | . . . Disarmed . | . . . Reprogrammed . | . . . Reused . | . . . Traps Extracted . | . . . Installed . | . . . Triggered . | . . . Machines | -11 -10 -9 ---------- Run | Yrd Mat Mat Machines Disabled . | . . . Max in Single Turn . | . . . Machines Repaired . | . . . Machines Dismantled . | . . . Machines Sabotaged . | . . . Overloaded Fab Kills . | . . . Hacking | -11 -10 -9 --------- Run | Yrd Mat Mat Machines Accessed 2 | . 2 . Terminals 1 | . 1 . Fabricators . | . . . Repair Stations . | . . . Recycling Units 1 | . 1 . Scanalyzers . | . . . Garrison Access . | . . . Total Hacks 2 | . 2 . Successful 2 | . 2 . Failed . | . . . Catastrophic . | . . . Database Lockouts . | . . . Manual 2 | . 2 . Terminals 1 | . 1 . Fabricators . | . . . Repair Stations . | . . . Recycling Units 1 | . 1 . Scanalyzers . | . . . Garrison Access . | . . . Terminal Hacks 1 | . 1 . Zone Layout 1 | . 1 . Fabricator Hacks . | . . . Repair Station Hacks . | . . . Recycling Unit Hacks 1 | . 1 . Report Inventory 1 | . 1 . Scanalyzer . | . . . Garrison Access Hacks . | . . . Unauthorized Hacks . | . . . Terminals . | . . . Fabricators . | . . . Repair Stations . | . . . Recycling Units . | . . . Scanalyzers . | . . . Garrison Access . | . . . Data Cores Recovered . | . . . Used . | . . . Hacking Detections 2 | . 2 . Full Trace Events . | . . . Feedback Events . | . . . Feedback Blocked . | . . . Robot Schematics Acquired . | . . . Robots Built . | . . . Authchips . | . . . Time . | . . . Total Robot Build Rating . | . . . Part Schematics Acquired . | . . . Parts Built . | . . . Authchips . | . . . Time . | . . . Total Part Build Rating . | . . . Parts Repaired . | . . . Time . | . . . Parts Recycled . | . . . Recycled Matter . | . . . Retrieved Matter . | . . . Retrieved Components . | . . . Parts Scanalyzed . | . . . Part Schematics Acquired . | . . . Parts Damaged . | . . . Bothacking | -11 -10 -9 ------------ Run | Yrd Mat Mat Used RIF Installer . | . . . Robots Hacked . | . . . Non-combat . | . . . Combat . | . . . Robot Hacks Applied . | . . . Relay Couplers Released . | . . . Fabnet Peak Effective % . | . . . Robots Rewired . | . . . Allies Hacked . | . . . Hacks Repelled . | . . . Allies | -11 -10 -9 -------- Run | Yrd Mat Mat Total Allies . | . . . Largest Group . | . . . Highest-Rated Group . | . . . Highest-Rated Ally . | . . . Total Orders . | . . . Ally Attacks . | . . . Total Damage . | . . . Kills . | . . . Allies Corrupted . | . . . Allies Melted . | . . . Intel | -11 -10 -9 ------- Run | Yrd Mat Mat Robot Analysis Total . | . . . Derelict Logs Recovered . | . . . Drone Launches . | . . . Drone Recoveries . | . . . Exploration | -11 -10 -9 ------------- Run | Yrd Mat Mat Turns Passed 575 | 111 233 231 Spaces Moved 434 | 76 198 160 Core 24 | 11 . 13 Treads . | . . . Legs . | . . . Wheels 138 | 65 73 . Hover 272 | . 125 147 Flight . | . . . Fastest Speed 48 | 50 56 48 Average Speed 60 | 75 65 48 Slowest Speed 120 | 80 120 116 Overloaded Moves . | . . . Propulsion Burnouts . | . . . Robots Hopped . | . . . Cave-ins Triggered . | . . . Exploration Rate (%) 18 | 3 28 24 Regions Visited 2 Branch Regions . Pre-discovered Areas . | . . . Known Exits Taken 1 | . 1 . Unknown Exits Taken 1 | 1 . . Scrap Searched . | . . . Spaces Dug 11 | . 3 8 Terrain Destroyed 11 | . 3 8 Melee 8 | . 2 6 Projectile 3 | . 1 2 AOE . | . . . Terrain Rammed . | . . . Walls Destroyed . | . . . Machines Disabled . | . . . Actions | -11 -10 -9 --------- Run | Yrd Mat Mat Total 586 | 109 248 229 Wait 18 | . 11 7 Move 432 | 75 197 160 Hop . | . . . Pick Up 21 | 7 10 4 Fast Attach 1 | . 1 . Attach 14 | 7 2 5 Detach . | . . . Swap 2 | . 1 1 Drop 9 | . 3 6 Fire 49 | 20 19 10 Melee 40 | . 4 36 Ram . | . . . Kick . | . . . Crush . | . . . Escape Stasis . | . . . Rewire . | . . . Trap . | . . . Miscellaneous . | . . . Route ------- -11/Scrapyard -10/Materials (discovered 2 exits: *Mat / [*Min]) -9/Materials History --------- Turn | Location | Event 6 | -11/Scrapyard | Discovered new exit (range 15) 112 | -11/Scrapyard | Entered Materials 140 | -10/Materials | Discovered new exit (range 11) 318 | -10/Materials | Build established: Mutant 336 | -10/Materials | Discovered new exit (range 3) 339 | -10/Materials | Identified exit to Materials 345 | -10/Materials | Entered another Materials area 345 | -9/Materials | Evolved 2 slots: Propulsion x2 563 | -9/Materials | Core integrity fell below 50% 567 | -9/Materials | Core integrity fell below 20% 576 | -9/Materials | Destroyed by G-34 Mercenary with Small Laser Last Messages --------------- R-06 Scavenger destroyed. R-06 Scavenger collects Com. Wheel. Dropped Mace. O-16 Technician uses terminal to summon reinforcements. ALERT: Hostiles spotted, dispatching reinforcements to Terminal M001. O-16 Technician locks terminal. Discarded Signal Interpreter. Dropped Med. Storage Unit. U-05 Engineer lays Concrete. G-47 Trooper destroyed. Destroyed Com. Wheel. U-05 Engineer lays Concrete. G-34 Mercenary destroyed. R-06 Scavenger destroyed. Destroyed Aluminum Leg. Grenade Launcher destroyed. Destroyed Grenade Launcher. G-34 Mercenary destroyed. Hrd. Light Armor Plating destroyed. W-16 Scout sends out distress signal. Map ----- +----------------------------------------------------+ | ????########### #########?????????? | | ???????# [??????? | | ???????# #######???????????? | | ???????# #?????????????????? | | ???????# #####+##########?????????? | | ???????# ## #?????????? | | ???????# ## #?????????? | | ?????? + ## """ """ ##????????? | | ????? # ## """"""""" ########### | | ???? # ## """"" [ ] # | | ???###?# ## ! %!! # | | ??????? #####+##### # | | ??????? % # | | ?????? T !! # | | ?????? ? w """ %= """ # | | ??????# ??# """ !! """ # | | ??????###/##??# """ """ # | | ????????? ????# ###? | | ??????????????# g #??? | | ??????????????#== g # #####??? | | ??????????????#== g ####??????? | | ??????????????#= #?????????? | | ??????????????# #?????????? | | ??????????????# #?????????? | | ??????????????# "" #?????????? | | ??????????????# "T @#?????????? | | ??????????????# ""o #????????? | | ??????????????# #????????? | | ??????????????# #????????? | | ??????????????# #####+##????????? | | ??????????????##k w#????????????????? | | ???????????????# ?????????????????? | | ???????????????# ??????????????????? | | ?????????????? + ???????????????????? | | ?????????????? #????????????????????? | | ????????????????????????????????????? | | ????????????????????????????????????? | | ????????????????????????????????????? | | ????????????????????????????????????? | | ????????????????????????????????????? | | ????????????????????????????????????? | | ????????????????????????????????????? | | ????????????????????????????????????? | | ????????????????????????????????????? | | ????????????????????????????????????? | | ????????????????????????????????????? | | ????????????????????????????????????? | | ????????????????????????????????????? | | ????????????????????????????????????? | | ????????????????????????????????????? | +----------------------------------------------------+ Best States ------------- Heat Dissipation 28 Energy Generation 10 Energy Capacity 250 Matter Stores 300 Matter Capacity 300 Sight Range 16 Terrain Scan Range 16 Terrain Scan Density 10 Armor Coverage 150 Evasion (%) 55 Item Schematics ----------------- None Robot Schematics ------------------ None Fabricated ------------ Nothing Alien Tech Used ----------------- None Achievements -------------- None Challenges ------------ None Game ------ Seed KineticSlugCore Manual? 0 Play Time 00:10:22 Cumulative 25.7 hours Start 2024.04.03 @ 02:07:03 End 2024.04.03 @ 02:16:57 Sessions 1 Manual Loads 0 Difficulty Rogue Special Mode None Game No. 54 Rogue 51 Adventurer 0 Explorer 3 Win Type - Total 0 Types 0/0/0/0/0/0/0/0/0 Lore% 22 Gallery% 30 Achievement% 26 Wizard Run 0 Options --------- Layout 0 ASCII 0 Keyboard 0 Movement Mouse Keybinds 0 Fullscreen 2 Font 18/SmallcapsGlow Map View 76x50 Zoom Use 0% Tactical HUD 0 Map Filters NONE Filters NONE Steam 1 RUN: 5b3bd859-20a6-4bc2-a641-3a7e38319d77